[Event "9e Open International de Porticcio"]
[Site "Porticcio, France"]
[Date "2024.06.30"]
[Round "3.3"]
[White "Druska, Juraj"]
[Black "Kavutskiy, Konstantin"]
[Result "1-0"]
[TimeControl "1h30+30s/move"]
[WhiteElo "2466"]
[BlackElo "2345"]

1. d4 {[%clk 01:30:52]} {[%emt 00:00:07]} Nf6 {[%clk 01:26:14]} {[%emt
00:04:47]} 2. c4 {[%clk 01:31:10]} {[%emt 00:00:12]} g6 {[%clk 01:26:40]}
{[%emt 00:00:05]} 3. Nc3 {[%clk 01:31:31]} {[%emt 00:00:08]} Bg7 {[%clk
01:27:04]} {[%emt 00:00:05]} 4. e4 {[%clk 01:31:54]} {[%emt 00:00:07]} d6
{[%clk 01:27:31]} {[%emt 00:00:03]} 5. h3 {[%clk 01:32:14]} {[%emt 00:00:10]}
Nbd7 {[%clk 01:27:17]} {[%emt 00:00:43]} 6. Bd3 {[%clk 01:32:34]} {[%emt
00:00:11]} e5 {[%clk 01:26:50]} {[%emt 00:00:58]} 7. d5 {[%clk 01:32:55]}
{[%emt 00:00:08]} Nc5 {[%clk 01:27:09]} {[%emt 00:00:10]} 8. Bc2 {[%clk
01:33:17]} {[%emt 00:00:08]} a5 {[%clk 01:27:25]} {[%emt 00:00:15]} 9. Be3
{[%clk 01:33:06]} {[%emt 00:00:41]} b6 {[%clk 01:27:26]} {[%emt 00:00:29]} 10.
Nge2 {[%clk 01:31:46]} {[%emt 00:01:49]} O-O {[%clk 01:23:58]} {[%emt
00:04:00]} 11. g4 {[%clk 01:23:09]} {[%emt 00:09:06]} h5 {[%clk 01:22:47]}
{[%emt 00:01:41]} 12. g5 {[%clk 01:12:24]} {[%emt 00:11:15]} Nh7 {[%clk
01:21:23]} {[%emt 00:01:53]} 13. Qd2 {[%clk 01:12:20]} {[%emt 00:00:35]} f6
{[%clk 01:11:00]} {[%emt 00:10:53]} 14. gxf6 {[%clk 01:12:14]} {[%emt
00:00:36]} Bxf6 {[%clk 01:11:19]} {[%emt 00:00:11]} 15. O-O-O {[%clk 01:12:06]}
{[%emt 00:00:38]} Ng5 {[%clk 01:06:44]} {[%emt 00:05:04]} 16. Ng1 {[%clk
01:02:18]} {[%emt 00:10:18]} Qe7 {[%clk 01:03:42]} {[%emt 00:03:32]} 17. f3
{[%clk 00:56:10]} {[%emt 00:06:38]} Bd7 {[%clk 01:00:32]} {[%emt 00:03:40]} 18.
Qg2 {[%clk 00:42:30]} {[%emt 00:14:11]} Kh7 {[%clk 00:56:50]} {[%emt 00:04:11]}
19. Nge2 {[%clk 00:39:22]} {[%emt 00:03:39]} Nf7 {[%clk 00:53:27]} {[%emt
00:03:53]} 20. Rhg1 {[%clk 00:39:35]} {[%emt 00:00:17]} Rg8 {[%clk 00:53:08]}
{[%emt 00:00:49]} 21. Kb1 {[%clk 00:38:00]} {[%emt 00:02:06]} a4 {[%clk
00:43:22]} {[%emt 00:10:16]} 22. Rdf1 {[%clk 00:37:40]} {[%emt 00:00:50]} Qe8
{[%clk 00:31:30]} {[%emt 00:12:22]} 23. f4 {[%clk 00:33:48]} {[%emt 00:04:22]}
Qe7 {[%clk 00:29:10]} {[%emt 00:02:50]} 24. Qf3 {[%clk 00:33:03]} {[%emt
00:01:15]} Raf8 {[%clk 00:22:46]} {[%emt 00:06:54]} 25. f5 {[%clk 00:30:20]}
{[%emt 00:03:12]} g5 {[%clk 00:16:04]} {[%emt 00:07:12]} 26. Qxh5+ {[%clk
00:27:41]} {[%emt 00:03:10]} Nh6 {[%clk 00:16:19]} {[%emt 00:00:15]} 27. Ng3
{[%clk 00:26:35]} {[%emt 00:01:36]} a3 {[%clk 00:16:01]} {[%emt 00:00:48]} 28.
b4 {[%clk 00:25:45]} {[%emt 00:01:21]} Na6 {[%clk 00:16:17]} {[%emt 00:00:14]}
29. b5 {[%clk 00:26:05]} {[%emt 00:00:09]} Nc5 {[%clk 00:16:18]} {[%emt
00:00:29]} 30. Qe2 {[%clk 00:25:21]} {[%emt 00:01:14]} Be8 {[%clk 00:14:35]}
{[%emt 00:02:13]} 31. Rg2 {[%clk 00:22:06]} {[%emt 00:03:45]} g4 {[%clk
00:13:29]} {[%emt 00:01:35]} 32. hxg4 {[%clk 00:17:42]} {[%emt 00:04:55]} Bg5
{[%clk 00:12:57]} {[%emt 00:01:02]} 33. Rh2 {[%clk 00:17:11]} {[%emt 00:01:00]}
1-0

[Event "9e Open International de Porticcio"]
[Site "Porticcio, France"]
[Date "2024.06.30"]
[Round "3.5"]
[White "Rakotomaharo, Fy Antenaina"]
[Black "Kuru, Atilla"]
[Result "1-0"]
[TimeControl "1h30+30s/move"]
[WhiteElo "2448"]
[BlackElo "2314"]

1. e4 {[%clk 01:25:59]} {[%emt 00:05:00]} c5 {[%clk 01:30:55]} {[%emt
00:00:05]} 2. a4 {[%clk 01:26:06]} {[%emt 00:00:23]} e6 {[%clk 01:29:23]}
{[%emt 00:01:59]} 3. g3 {[%clk 01:26:07]} {[%emt 00:00:30]} d5 {[%clk
01:29:36]} {[%emt 00:00:18]} 4. exd5 {[%clk 01:24:38]} {[%emt 00:02:00]} exd5
{[%clk 01:29:58]} {[%emt 00:00:07]} 5. Bg2 {[%clk 01:25:04]} {[%emt 00:00:03]}
Nf6 {[%clk 01:30:11]} {[%emt 00:00:18]} 6. Ne2 {[%clk 01:25:30]} {[%emt
00:00:04]} Be7 {[%clk 01:29:33]} {[%emt 00:01:08]} 7. O-O {[%clk 01:25:38]}
{[%emt 00:00:22]} O-O {[%clk 01:27:40]} {[%emt 00:02:23]} 8. d4 {[%clk
01:25:53]} {[%emt 00:00:15]} Bg4 {[%clk 01:27:48]} {[%emt 00:00:21]} 9. dxc5
{[%clk 01:16:59]} {[%emt 00:09:24]} Bxc5 {[%clk 01:27:06]} {[%emt 00:01:13]} 10.
h3 {[%clk 01:17:20]} {[%emt 00:00:08]} Bxe2 {[%clk 01:23:08]} {[%emt 00:04:29]}
11. Qxe2 {[%clk 01:17:43]} {[%emt 00:00:07]} Nbd7 {[%clk 01:17:15]} {[%emt
00:06:21]} 12. Nc3 {[%clk 01:10:52]} {[%emt 00:07:20]} Qa5 {[%clk 01:02:33]}
{[%emt 00:15:13]} 13. Bd2 {[%clk 00:43:45]} {[%emt 00:27:36]} Bb4 {[%clk
01:02:00]} {[%emt 00:01:03]} 14. Rfd1 {[%clk 00:43:01]} {[%emt 00:01:14]} Nb6
{[%clk 00:59:29]} {[%emt 00:03:02]} 15. Qb5 {[%clk 00:35:19]} {[%emt 00:08:12]}
Nc4 {[%clk 00:53:10]} {[%emt 00:06:49]} 16. Nxd5 {[%clk 00:17:56]} {[%emt
00:17:53]} Qxb5 {[%clk 00:51:52]} {[%emt 00:01:48]} 17. axb5 {[%clk 00:18:23]}
{[%emt 00:00:03]} Nxd5 {[%clk 00:47:41]} {[%emt 00:04:41]} 18. Bxd5 {[%clk
00:17:39]} {[%emt 00:01:14]} Nxd2 {[%clk 00:48:02]} {[%emt 00:00:09]} 19. c3
{[%clk 00:18:03]} {[%emt 00:00:05]} Be7 {[%clk 00:39:15]} {[%emt 00:09:18]} 20.
Rxd2 {[%clk 00:18:15]} {[%emt 00:00:18]} Rfd8 {[%clk 00:38:52]} {[%emt
00:00:54]} 21. Rdd1 {[%clk 00:16:11]} {[%emt 00:02:33]} Rab8 {[%clk 00:34:00]}
{[%emt 00:05:23]} 22. Rxa7 {[%clk 00:15:43]} {[%emt 00:00:59]} Bc5 {[%clk
00:34:24]} {[%emt 00:00:05]} 23. Raa1 {[%clk 00:13:37]} {[%emt 00:02:36]} Kf8
{[%clk 00:34:44]} {[%emt 00:00:10]} 24. Bf3 {[%clk 00:10:25]} {[%emt 00:03:42]}
Ke7 {[%clk 00:33:53]} {[%emt 00:01:21]} 25. Kf1 {[%clk 00:10:45]} {[%emt
00:00:10]} Rxd1+ {[%clk 00:31:57]} {[%emt 00:02:27]} 26. Rxd1 {[%clk 00:11:09]}
{[%emt 00:00:05]} g6 {[%clk 00:31:51]} {[%emt 00:00:37]} 27. Ke2 {[%clk
00:09:50]} {[%emt 00:01:49]} f5 {[%clk 00:31:58]} {[%emt 00:00:23]} 28. Rd2
{[%clk 00:06:58]} {[%emt 00:03:22]} Ke6 {[%clk 00:31:27]} {[%emt 00:01:01]} 29.
Kd1 {[%clk 00:07:14]} {[%emt 00:00:14]} h5 {[%clk 00:31:19]} {[%emt 00:00:38]}
30. Kc2 {[%clk 00:07:20]} {[%emt 00:00:24]} b6 {[%clk 00:30:44]} {[%emt
00:01:05]} 31. b4 {[%clk 00:04:24]} {[%emt 00:03:26]} Bd6 {[%clk 00:30:48]}
{[%emt 00:00:25]} 32. Bd5+ {[%clk 00:04:47]} {[%emt 00:00:07]} Kf6 {[%clk
00:30:01]} {[%emt 00:01:18]} 33. Re2 {[%clk 00:05:12]} {[%emt 00:00:05]} Rd8
{[%clk 00:30:26]} {[%emt 00:00:06]} 34. Re6+ {[%clk 00:05:30]} {[%emt
00:00:11]} Kg7 {[%clk 00:30:44]} {[%emt 00:00:10]} 35. c4 {[%clk 00:05:29]}
{[%emt 00:00:33]} g5 {[%clk 00:30:34]} {[%emt 00:00:40]} 36. Kc3 {[%clk
00:02:13]} {[%emt 00:03:46]} f4 {[%clk 00:30:24]} {[%emt 00:00:40]} 37. g4
{[%emt 00:01:07]} hxg4 {[%clk 00:30:27]} {[%emt 00:00:07]} 38. hxg4 {[%clk
00:02:21]} {[%emt 00:00:04]} Rd7 {[%clk 00:29:24]} {[%emt 00:01:33]} 39. f3
{[%clk 00:02:16]} {[%emt 00:00:35]} Kf8 {[%clk 00:27:39]} {[%emt 00:02:14]} 40.
Kd4 {[%clk 00:02:32]} {[%emt 00:00:15]} Bxb4 {[%clk 00:27:32]} {[%emt
00:00:38]} 41. Rxb6 {[%clk 00:02:55]} {[%emt 00:00:07]} Ke7 {[%clk 00:27:30]}
{[%emt 00:00:32]} 42. Re6+ {[%clk 00:02:41]} {[%emt 00:00:43]} Kd8 {[%clk
00:27:53]} {[%emt 00:00:07]} 43. b6 {[%clk 00:03:03]} {[%emt 00:00:08]} Bd2
{[%clk 00:27:13]} {[%emt 00:01:11]} 44. c5 {[%clk 00:02:52]} {[%emt 00:00:40]}
Be3+ {[%clk 00:27:34]} {[%emt 00:00:09]} 45. Kc4 {[%clk 00:03:20]} {[%emt
00:00:03]} Bf2 {[%clk 00:27:15]} {[%emt 00:00:49]} 46. c6 {[%clk 00:03:03]}
{[%emt 00:00:47]} Rh7 {[%clk 00:27:28]} {[%emt 00:00:17]} 47. c7+ {[%clk
00:03:13]} {[%emt 00:00:21]} Kd7 {[%clk 00:27:53]} {[%emt 00:00:04]} 48. Re8
{[%clk 00:03:03]} {[%emt 00:00:40]} 1-0

[Event "9e Open International de Porticcio"]
[Site "Porticcio, France"]
[Date "2024.06.30"]
[Round "3.6"]
[White "Roux, Baptiste"]
[Black "Clarke, Brandon G I"]
[Result "1/2-1/2"]
[TimeControl "1h30+30s/move"]
[WhiteElo "2352"]
[BlackElo "2498"]

1. e4 {[%clk 01:25:35]} {[%emt 00:05:24]} c5 {[%clk 01:30:46]} {[%emt
00:00:14]} 2. Nf3 {[%clk 01:25:47]} {[%emt 00:00:19]} d6 {[%clk 01:30:49]}
{[%emt 00:00:27]} 3. d4 {[%clk 01:26:07]} {[%emt 00:00:10]} cxd4 {[%clk
01:31:08]} {[%emt 00:00:11]} 4. Nxd4 {[%clk 01:26:31]} {[%emt 00:00:06]} Nf6
{[%clk 01:31:32]} {[%emt 00:00:06]} 5. Nc3 {[%clk 01:26:55]} {[%emt 00:00:07]}
g6 {[%clk 01:29:52]} {[%emt 00:02:10]} 6. Be3 {[%clk 01:27:13]} {[%emt
00:00:12]} Bg7 {[%clk 01:30:13]} {[%emt 00:00:09]} 7. f3 {[%clk 01:27:38]}
{[%emt 00:00:06]} O-O {[%clk 01:30:17]} {[%emt 00:00:26]} 8. Qd2 {[%clk
01:27:50]} {[%emt 00:00:17]} Nc6 {[%clk 01:30:41]} {[%emt 00:00:05]} 9. Bc4
{[%clk 01:27:19]} {[%emt 00:01:02]} Bd7 {[%clk 01:30:36]} {[%emt 00:00:35]} 10.
h4 {[%clk 01:27:41]} {[%emt 00:00:08]} h5 {[%clk 01:30:02]} {[%emt 00:01:04]}
11. O-O-O {[%clk 01:27:54]} {[%emt 00:00:17]} Rc8 {[%clk 01:30:03]} {[%emt
00:00:29]} 12. Bb3 {[%clk 01:28:17]} {[%emt 00:00:07]} Ne5 {[%clk 01:29:57]}
{[%emt 00:00:36]} 13. Bg5 {[%clk 01:28:39]} {[%emt 00:00:09]} Rc5 {[%clk
01:29:35]} {[%emt 00:00:51]} 14. Kb1 {[%clk 01:29:04]} {[%emt 00:00:05]} b5
{[%clk 01:29:27]} {[%emt 00:00:38]} 15. g4 {[%clk 01:29:04]} {[%emt 00:00:30]}
a5 {[%clk 01:27:03]} {[%emt 00:02:53]} 16. gxh5 {[%clk 01:26:40]} {[%emt
00:02:55]} a4 {[%clk 01:26:37]} {[%emt 00:00:55]} 17. h6 {[%clk 01:26:32]}
{[%emt 00:00:38]} Bh8 {[%clk 01:26:52]} {[%emt 00:00:15]} 18. h7+ {[%clk
01:26:49]} {[%emt 00:00:13]} Nxh7 {[%clk 01:26:56]} {[%emt 00:00:27]} 19. Bd5
{[%clk 01:26:36]} {[%emt 00:00:43]} b4 {[%clk 01:25:42]} {[%emt 00:01:45]} 20.
Nce2 {[%clk 01:25:34]} {[%emt 00:01:32]} Qe8 {[%clk 01:22:19]} {[%emt
00:03:53]} 21. f4 {[%clk 00:58:14]} {[%emt 00:27:50]} Ng4 {[%clk 01:11:54]}
{[%emt 00:10:55]} 22. Rdg1 {[%clk 00:47:55]} {[%emt 00:10:49]} Nf2 {[%clk
00:49:52]} {[%emt 00:22:32]} 23. Rh2 {[%clk 00:37:50]} {[%emt 00:10:35]} e6
{[%clk 00:49:22]} {[%emt 00:01:00]} 24. Rxf2 {[%clk 00:32:51]} {[%emt
00:05:29]} exd5 {[%clk 00:49:46]} {[%emt 00:00:07]} 25. Nf5 {[%clk 00:30:17]}
{[%emt 00:03:04]} Bxf5 {[%clk 00:48:36]} {[%emt 00:01:39]} 26. exf5 {[%clk
00:30:41]} {[%emt 00:00:07]} b3 {[%clk 00:47:59]} {[%emt 00:01:07]} 27. Nc3
{[%clk 00:14:37]} {[%emt 00:16:34]} bxc2+ {[%clk 00:31:29]} {[%emt 00:17:00]}
28. Qxc2 {[%clk 00:14:43]} {[%emt 00:00:24]} Nxg5 {[%clk 00:23:59]} {[%emt
00:08:00]} 29. fxg6 {[%clk 00:11:32]} {[%emt 00:03:40]} fxg6 {[%clk 00:14:17]}
{[%emt 00:10:12]} 30. fxg5 {[%clk 00:10:28]} {[%emt 00:01:34]} Rxf2 {[%clk
00:09:06]} {[%emt 00:05:41]} 31. Qxf2 {[%clk 00:10:56]} {[%emt 00:00:01]} a3
{[%clk 00:06:43]} {[%emt 00:02:54]} 32. Re1 {[%clk 00:09:49]} {[%emt 00:01:37]}
Be5 {[%clk 00:06:47]} {[%emt 00:00:27]} 33. Qf3 {[%clk 00:05:59]} {[%emt
00:04:20]} Qb8 {[%clk 00:04:43]} {[%emt 00:02:33]} 34. Na4 {[%clk 00:06:27]}
{[%emt 00:00:02]} Ra5 {[%clk 00:01:05]} {[%emt 00:04:08]} 35. Qb3 {[%clk
00:05:25]} {[%emt 00:01:32]} Rb5 {[%clk 00:00:34]} {[%emt 00:01:02]} 36. Qxa3
{[%clk 00:05:39]} {[%emt 00:00:16]} Rb4 {[%clk 00:00:33]} {[%emt 00:00:31]} 37.
b3 {[%clk 00:04:36]} {[%emt 00:01:32]} Rxh4 {[%clk 00:00:33]} {[%emt 00:00:30]}
38. Nb2 {[%clk 00:04:42]} {[%emt 00:00:25]} Rd4 {[%clk 00:00:35]} {[%emt
00:00:28]} 39. Qa6 {[%clk 00:04:23]} {[%emt 00:00:49]} Qf8 {[%clk 00:00:34]}
{[%emt 00:00:31]} 40. Rxe5 {[%clk 00:02:56]} {[%emt 00:01:57]} dxe5 {[%clk
00:00:42]} {[%emt 00:00:22]} 41. Qxg6+ {[%clk 00:03:24]} {[%emt 00:00:02]} Kh8
{[%clk 00:00:50]} {[%emt 00:00:22]} 42. Qh5+ {[%clk 00:03:22]} {[%emt
00:00:31]} Kg7 {[%clk 00:00:52]} {[%emt 00:00:28]} 43. Qh6+ {[%clk 00:03:45]}
{[%emt 00:00:07]} Kg8 {[%clk 00:00:34]} {[%emt 00:00:49]} 44. Qg6+ {[%clk
00:04:09]} {[%emt 00:00:06]} Kh8 {[%clk 00:00:49]} {[%emt 00:00:14]} 45. Qh5+
{[%clk 00:04:21]} {[%emt 00:00:19]} Kg8 {[%clk 00:01:03]} {[%emt 00:00:16]} 46.
Qg6+ {[%clk 00:04:44]} {[%emt 00:00:07]} Kh8 {[%emt 00:00:06]} 47. Qh5+ 1/2-1/2

[Event "9e Open International de Porticcio"]
[Site "Porticcio, France"]
[Date "2024.06.30"]
[Round "3.7"]
[White "Lagarde, Maxime"]
[Black "Ouellet, Maili-Jade"]
[Result "1/2-1/2"]
[TimeControl "1h30+30s/move"]
[WhiteElo "2604"]
[BlackElo "2290"]

1. e4 {[%clk 01:27:26]} {[%emt 00:02:14]} c5 {[%clk 01:30:57]} {[%emt
00:00:10]} 2. Nf3 {[%clk 01:27:51]} {[%emt 00:00:05]} Nc6 {[%clk 01:31:24]}
{[%emt 00:00:04]} 3. Bb5 {[%clk 01:28:18]} {[%emt 00:00:04]} e6 {[%clk
01:31:47]} {[%emt 00:00:06]} 4. O-O {[%clk 01:28:38]} {[%emt 00:00:10]} Nge7
{[%clk 01:32:11]} {[%emt 00:00:06]} 5. Re1 {[%clk 01:29:02]} {[%emt 00:00:05]}
a6 {[%clk 01:32:33]} {[%emt 00:00:08]} 6. Bf1 {[%clk 01:29:27]} {[%emt
00:00:05]} d5 {[%clk 01:32:43]} {[%emt 00:00:20]} 7. exd5 {[%clk 01:29:24]}
{[%emt 00:00:33]} Nxd5 {[%clk 01:33:07]} {[%emt 00:00:06]} 8. d4 {[%clk
01:29:51]} {[%emt 00:00:03]} Nf6 {[%clk 01:33:28]} {[%emt 00:00:10]} 9. Be3
{[%clk 01:30:16]} {[%emt 00:00:05]} Be7 {[%clk 01:33:44]} {[%emt 00:00:13]} 10.
c4 {[%clk 01:30:39]} {[%emt 00:00:08]} O-O {[%clk 01:33:50]} {[%emt 00:00:24]}
11. Nc3 {[%clk 01:30:57]} {[%emt 00:00:11]} cxd4 {[%clk 01:33:59]} {[%emt
00:00:22]} 12. Nxd4 {[%clk 01:31:23]} {[%emt 00:00:05]} Ne5 {[%clk 01:34:03]}
{[%emt 00:00:26]} 13. h3 {[%clk 01:24:50]} {[%emt 00:07:03]} Bd7 {[%clk
01:33:51]} {[%emt 00:00:42]} 14. c5 {[%clk 01:16:39]} {[%emt 00:08:41]} Qc8
{[%clk 01:24:04]} {[%emt 00:10:17]} 15. Rc1 {[%clk 01:13:26]} {[%emt 00:03:43]}
Rd8 {[%clk 01:21:00]} {[%emt 00:03:33]} 16. b4 {[%clk 01:10:37]} {[%emt
00:03:20]} Nc6 {[%clk 01:16:44]} {[%emt 00:04:46]} 17. Qb3 {[%clk 01:06:55]}
{[%emt 00:04:12]} Nxd4 {[%clk 01:14:17]} {[%emt 00:02:58]} 18. Bxd4 {[%clk
01:07:21]} {[%emt 00:00:04]} Bc6 {[%clk 01:13:34]} {[%emt 00:01:13]} 19. Be5
{[%clk 01:07:11]} {[%emt 00:00:41]} Nd5 {[%clk 01:00:37]} {[%emt 00:13:27]} 20.
Ne4 {[%clk 01:03:39]} {[%emt 00:04:02]} Qd7 {[%clk 00:57:46]} {[%emt 00:03:21]}
21. Bc4 {[%clk 01:02:27]} {[%emt 00:01:42]} f6 {[%clk 00:53:26]} {[%emt
00:04:50]} 22. Bd6 {[%clk 01:00:48]} {[%emt 00:02:08]} Bxd6 {[%clk 00:47:42]}
{[%emt 00:06:15]} 23. cxd6 {[%clk 00:49:46]} {[%emt 00:11:33]} b6 {[%clk
00:45:32]} {[%emt 00:02:39]} 24. Bxd5 {[%clk 00:37:48]} {[%emt 00:12:28]} Bxd5
{[%clk 00:37:51]} {[%emt 00:08:11]} 25. Qg3 {[%clk 00:38:12]} {[%emt 00:01:55]}
Qf7 26. Rc7 {[%clk 00:38:07]} {[%emt 00:03:44]} Qg6 {[%clk 00:33:43]} 27. Qxg6
{[%clk 00:38:07]} hxg6 {[%clk 00:33:43]} {[%emt 00:01:10]} 28. Nc3 {[%emt
00:01:37]} Rxd6 {[%clk 00:32:33]} {[%emt 00:00:15]} 29. Nxd5 {[%emt 00:00:29]}
exd5 {[%emt 00:03:35]} 30. Ree7 {[%clk 00:39:11]} Rad8 {[%clk 00:29:02]} {[%emt
00:00:39]} 31. Rxg7+ {[%clk 00:26:38]} {[%emt 00:02:19]} Kh8 32. Kf1 {[%emt
00:14:41]} d4 {[%emt 00:01:03]} 33. Rxg6 {[%clk 00:22:00]} {[%emt 00:04:37]} d3
{[%emt 00:06:20]} 34. Rc4 {[%emt 00:01:20]} Kh7 {[%clk 00:20:49]} {[%emt
00:00:49]} 35. Rg3 {[%clk 00:19:38]} {[%emt 00:04:15]} Rd4 {[%clk 00:16:47]} 36.
Rxd4 Rxd4 37. Ke1 {[%clk 00:19:06]} {[%emt 00:00:33]} d2+ {[%clk 00:14:14]}
{[%emt 00:03:03]} 38. Kd1 {[%clk 00:18:56]} {[%emt 00:00:40]} Rxb4 {[%emt
00:00:52]} 39. Rb3 {[%clk 00:18:38]} {[%emt 00:00:01]} Rf4 {[%clk 00:14:22]}
{[%emt 00:00:47]} 40. f3 {[%clk 00:18:32]} {[%emt 00:00:36]} b5 {[%clk
00:14:33]} {[%emt 00:00:19]} 41. Ra3 {[%clk 00:18:33]} {[%emt 00:00:30]} Rb4
{[%clk 00:14:39]} {[%emt 00:00:24]} 42. g4 {[%clk 00:12:05]} {[%emt 00:06:58]}
Rb1+ {[%clk 00:08:21]} {[%emt 00:06:48]} 43. Kxd2 {[%clk 00:12:30]} {[%emt
00:00:05]} Rh1 {[%clk 00:08:48]} {[%emt 00:00:02]} 44. Rxa6 {[%clk 00:09:58]}
{[%emt 00:03:01]} Kg7 {[%clk 00:06:29]} {[%emt 00:02:49]} 45. Ke3 {[%clk
00:09:37]} {[%emt 00:00:53]} Rxh3 {[%clk 00:06:46]} {[%emt 00:00:12]} 46. Ke4
{[%clk 00:09:55]} {[%emt 00:00:11]} f5+ {[%clk 00:04:59]} {[%emt 00:02:19]} 47.
gxf5 {[%clk 00:07:10]} {[%emt 00:03:15]} Rh2 {[%clk 00:05:07]} {[%emt
00:00:22]} 48. a3 {[%clk 00:03:24]} {[%emt 00:04:17]} Kf7 {[%clk 00:03:00]}
{[%emt 00:02:37]} 49. f6 {[%clk 00:02:38]} {[%emt 00:01:15]} Rh4+ {[%clk
00:02:39]} {[%emt 00:00:51]} 50. f4 {[%clk 00:02:44]} {[%emt 00:00:24]} Rh5
{[%clk 00:02:03]} {[%emt 00:01:06]} 51. Kd4 {[%clk 00:01:17]} {[%emt 00:01:58]}
Rf5 {[%clk 00:02:06]} {[%emt 00:00:27]} 52. Ke3 {[%clk 00:01:29]} {[%emt
00:00:17]} Rc5 {[%clk 00:02:16]} {[%emt 00:00:21]} 53. Ke4 {[%clk 00:01:44]}
{[%emt 00:00:14]} Rh5 {[%clk 00:02:10]} {[%emt 00:00:38]} 54. Ra5 {[%clk
00:02:00]} {[%emt 00:00:14]} Rc5 {[%clk 00:01:46]} {[%emt 00:00:53]} 55. Kd4
{[%clk 00:02:01]} {[%emt 00:00:30]} Rc4+ {[%clk 00:01:50]} {[%emt 00:00:27]} 56.
Kd5 {[%clk 00:01:33]} {[%emt 00:00:57]} Rc3 {[%clk 00:01:58]} {[%emt 00:00:23]}
57. Ra6 {[%clk 00:01:42]} {[%emt 00:00:21]} Rc4 {[%clk 00:01:44]} {[%emt
00:00:44]} 58. Ke5 {[%clk 00:01:22]} {[%emt 00:00:48]} Rc5+ {[%clk 00:02:08]}
{[%emt 00:00:06]} 59. Ke4 {[%clk 00:01:36]} {[%emt 00:00:16]} Rc4+ {[%clk
00:02:09]} {[%emt 00:00:30]} 60. Kf5 {[%clk 00:01:46]} {[%emt 00:00:18]} Rc5+
{[%clk 00:02:13]} {[%emt 00:00:28]} 61. Kg4 {[%clk 00:02:10]} {[%emt 00:00:04]}
Rd5 {[%clk 00:01:23]} {[%emt 00:01:20]} 62. Ra5 {[%clk 00:02:16]} {[%emt
00:00:24]} Rd3 {[%clk 00:01:01]} {[%emt 00:00:52]} 63. Kg5 {[%clk 00:02:41]}
{[%emt 00:00:05]} Rd5+ {[%clk 00:01:01]} {[%emt 00:00:31]} 64. f5 {[%clk
00:03:05]} {[%emt 00:00:06]} Rd3 {[%clk 00:00:51]} {[%emt 00:00:40]} 65. Ra7+
{[%clk 00:03:16]} {[%emt 00:00:19]} Kf8 {[%clk 00:01:14]} {[%emt 00:00:06]} 66.
f7 {[%clk 00:01:08]} {[%emt 00:02:38]} Rd6 {[%clk 00:01:41]} {[%emt 00:00:04]}
67. Rb7 {[%clk 00:00:39]} {[%emt 00:00:59]} Ra6 {[%clk 00:01:55]} {[%emt
00:00:16]} 68. Rxb5 {[%clk 00:00:45]} {[%emt 00:00:24]} Rxa3 {[%clk 00:01:11]}
{[%emt 00:01:14]} 69. Rb8+ {[%clk 00:01:13]} {[%emt 00:00:02]} Kxf7 {[%clk
00:01:36]} {[%emt 00:00:06]} 70. Rb7+ {[%clk 00:01:41]} {[%emt 00:00:02]} Kf8
{[%clk 00:01:21]} {[%emt 00:00:45]} 71. Kg6 {[%clk 00:02:05]} {[%emt 00:00:05]}
Rf3 {[%clk 00:01:23]} {[%emt 00:00:28]} 72. Kf6 {[%clk 00:02:21]} {[%emt
00:00:14]} Kg8 {[%clk 00:01:30]} {[%emt 00:00:23]} 73. Rb8+ {[%clk 00:02:20]}
{[%emt 00:00:31]} Kh7 {[%clk 00:02:00]} 74. Ke6 {[%clk 00:02:34]} {[%emt
00:00:16]} Kg7 {[%clk 00:02:16]} {[%emt 00:00:14]} 75. Rb7+ {[%clk 00:02:54]}
{[%emt 00:00:11]} Kf8 {[%clk 00:02:39]} {[%emt 00:00:06]} 76. Rb5 {[%clk
00:02:59]} {[%emt 00:00:25]} Rf1 {[%clk 00:02:45]} {[%emt 00:00:25]} 77. Kf6
{[%clk 00:03:18]} {[%emt 00:00:11]} Kg8 {[%clk 00:03:03]} {[%emt 00:00:12]} 78.
Rb2 {[%clk 00:03:30]} {[%emt 00:00:19]} Rf3 {[%clk 00:03:13]} {[%emt 00:00:19]}
79. Rg2+ {[%clk 00:02:47]} {[%emt 00:01:13]} Kf8 {[%clk 00:03:34]} {[%emt
00:00:09]} 80. Kg6 {[%clk 00:03:02]} {[%emt 00:00:14]} Ke7 {[%clk 00:01:58]}
{[%emt 00:02:06]} 81. Rg5 {[%clk 00:02:58]} {[%emt 00:00:33]} Kf8 {[%clk
00:01:42]} {[%emt 00:00:47]} 82. Rh5 {[%clk 00:03:23]} {[%emt 00:00:05]} Kg8
{[%clk 00:01:25]} {[%emt 00:00:47]} 83. Rh1 {[%clk 00:03:47]} {[%emt 00:00:05]}
Ra3 {[%clk 00:01:08]} {[%emt 00:00:48]} 84. Rb1 {[%clk 00:04:03]} {[%emt
00:00:14]} Rg3+ {[%clk 00:01:20]} {[%emt 00:00:17]} 85. Kf6 {[%clk 00:04:28]}
{[%emt 00:00:04]} Rf3 {[%clk 00:01:39]} {[%emt 00:00:12]} 86. Rb8+ {[%clk
00:04:12]} {[%emt 00:00:46]} Kh7 {[%clk 00:02:08]} {[%emt 00:00:02]} 87. Rb7+
{[%clk 00:04:36]} Kg8 {[%clk 00:02:08]} 88. Rb8+ Kh7 {[%clk 00:02:08]} 89. Rb7+
{[%clk 00:04:36]} Kg8 {[%clk 00:02:08]} 1/2-1/2